[Event "American Cup Women Elimination 2023"]
[Site "Saint Louis"]
[Date "2023.03.22"]
[Round "3.1"]
[White "Tokhirjonova, Gulrukhbegim"]
[Black "Paikidze, Nazi"]
[Result "0-1"]
[ECO "A21"]
[WhiteElo "2332"]
[BlackElo "2314"]
[Annotator "TA"]
[PlyCount "82"]
[EventDate "2023.03.15"]
[EventType "k.o."]
[EventCountry "USA"]
[SourceTitle "playchess.com"]
[Source "ChessBase"]
[SourceQuality "1"]
[TimeControl "1500+10"]

{[%evp 14,82,5,-18,5,2,20,11,31,31,32,28,35,26,28,14,25,14,14,0,0,0,0,0,0,0,48,-11,0,-93,-51,-107,-104,-79,-97,-102,-132,-140,-162,-336,-318,-306,-324,-420,-372,-356,-363,-549,-584,-574,-564,-756,-700,-757,-718,-800,-701,-700,-616,-829,-831,-829,-812,-29988,-29989,-29989,-29990,-29992,-991,-1820,-1410]} 1. Nf3 {[%emt 0:00:35]} f5 {[%emt 0:00:02]} 2. g3 {[%emt 0:00:11]} Nf6 {[%emt 0:00:02]} 3. Bg2 {[%emt 0:00:06]} g6 {[%emt 0:00:02]} 4. c4 {[%emt 0:00:07]} Bg7 {[%emt 0:00:03]} 5. Nc3 {[%emt 0:00:02]} O-O {[%emt 0:01:06]} 6. O-O {[%emt 0:00:32]} d6 {[%emt 0:00:13]} 7. d3 {[%emt 0:02:13]} e5 {[%emt 0:00:18]} 8. e3 {[%emt 0:01:11]} Nc6 {[%emt 0:02:57] A21: English Opening: 1...e5 2 Nc3.} 9. Rb1 {[%emt 0:00:04]} a5 {[%emt 0:01:35]} 10. a3 {[%emt 0:00:01]} Ne7 {[%emt 0:00:03] The position is equal.} 11. b4 {[%emt 0:00:09]} axb4 {[%emt 0:00:03]} 12. axb4 {[%emt 0:00:22]} h6 {[%emt 0:01:49]} 13. b5 {[%emt 0:00:15]} Be6 {[%emt 0:02:05]} 14. Nd2 {[%emt 0:02:08]} c6 {[%emt 0:01:04]} 15. Qb3 {[%emt 0:01:09] [#]} Nd7 $146 {[%emt 0:01:17]} ({Predecessor:} 15... d5 16. Ba3 Re8 17. bxc6 bxc6 18. Bc5 Qa5 19. Bb4 Qc7 20. Bxe7 dxc4 21. Nxc4 Rxe7 22. Rfc1 Ra6 23. Ra1 Rxa1 24. Rxa1 Kh7 25. Ra6 Qd8 26. Qa3 Bd5 27. Ra8 {½-½ Satici,A (2449)-Pheby,I Pat Thorn mem corr 2000}) 16. Ba3 {[%emt 0:03:44]} Nc5 {[%emt 0:01:01]} 17. Bxc5 {[%emt 0:00:41]} dxc5 {[%emt 0:00:01]} 18. Na4 {[%emt 0:00:04]} Qd6 {[%emt 0:00:41][%cal Oe5e4]} 19. Rfd1 {[%emt 0:01:18]} Ra5 {[%emt 0:00:35]} (19... Rfd8 $11 {might be stronger.}) 20. bxc6 {[%emt 0:01:26]} (20. Qa3 $1 $14) 20... b5 $11 {[%emt 0:00:32]} 21. Nb2 {[%emt 0:03:35]} (21. Nc3 b4 22. Nd5 (22. Nb5 $2 Rxb5 {[%mdl 64] Pin} 23. Qa4 Rbb8 $19) 22... Nxc6 $15) (21. Qxb5 $1 $11 {remains equal.} Rfa8 22. Nb6 Rxb5 23. cxb5) 21... b4 {[%emt 0:01:01] Black converts the advantage convincingly.} 22. Ra1 {[%emt 0:00:10] [#] Repels Ra3} (22. d4 $15) 22... Rfa8 $1 $17 {[%emt 0:00:19][%cal Bf8a8,Ba8a5,Ba5a3,Ba3b3][%mdl 32]} (22... Nxc6 $6 23. Rxa5 Nxa5 24. Qa4 $11) 23. Rxa5 {[%emt 0:02:02]} Rxa5 {[%emt 0:00:01]} 24. d4 {[%emt 0:00:39]} exd4 {[%emt 0:01:35]} (24... cxd4 $6 25. exd4 exd4 26. c7 $11) (24... Ra3 {is interesting.} 25. Qc2 exd4 26. exd4 Qxd4 27. Na4 Ra1) 25. exd4 {[%emt 0:00:07] [#]} Ra3 $1 {[%emt 0:03:36]} ({But not} 25... Nxc6 26. Bxc6 Bxd4 27. Bg2 $16) (25... Qxd4 26. Qd3 Ra2 27. Qe2 $15) ({Worse is} 25... cxd4 26. c7 $11) (25... Bxd4 26. Qc2 Nxc6 27. Nb3 $17) 26. dxc5 $2 {[%emt 0:02:59] [#]} (26. Qc2 Qxd4 27. Na4) 26... Qxd2 $3 $19 {[%emt 0:00:46][%mdl 512]} 27. Rxd2 {[%emt 0:02:06]} Rxb3 {[%emt 0:00:01]} 28. Nd1 {[%emt 0:00:35]} Rb1 {[%emt 0:01:17]} 29. Bd5 {[%emt 0:00:31]} Kf7 {[%emt 0:01:01]} 30. c7 {[%emt 0:00:16]} (30. Kg2 {was called for.} b3 31. Bxe6+ Kxe6 32. Rd6+ Kf7 33. c7) 30... Be5 {[%emt 0:00:56]} 31. Kg2 {[%emt 0:00:44]} Bxc7 {[%emt 0:00:21]} 32. Ne3 {[%emt 0:00:10]} b3 {[%emt 0:00:52]} 33. Nd1 {[%emt 0:00:17]} Ba5 {[%emt 0:00:34]} 34. Rd3 {[%emt 0:00:00]} b2 {[%emt 0:00:51]} 35. c6 {[%emt 0:00:01]} Bc7 {[%emt 0:00:35]} 36. f4 {[%emt 0:00:01]} Rc1 {[%emt 0:00:30]} 37. Nxb2 {[%emt 0:00:38]} Rc2+ {[%emt 0:00:01]} 38. Kh3 {[%emt 0:00:06]} Rxb2 {[%emt 0:00:09]} 39. Bxe6+ {[%emt 0:00:06]} Kxe6 {[%emt 0:00:01]} 40. Rd7 {[%emt 0:00:01]} Ba5 {[%emt 0:00:44]} (40... g5 $142 41. fxg5 hxg5 42. Rd4 Nxc6 43. Rh4 gxh4 44. Kxh4 Kf6 45. Kh3 Kg5 46. c5 Kh5 47. g4+ fxg4#) 41. Ra7 {[%emt 0:00:13]} Nxc6 {[%emt 0:00:06] Weighted Error Value: White=0.64/Black=0.16 (very precise)} 0-1

[Event "American Cup Women Elimination 2023"]
[Site "Saint Louis"]
[Date "2023.03.22"]
[Round "3.2"]
[White "Paikidze, Nazi"]
[Black "Tokhirjonova, Gulrukhbegim"]
[Result "1-0"]
[ECO "E06"]
[WhiteElo "2314"]
[BlackElo "2332"]
[Annotator "TA"]
[PlyCount "85"]
[EventDate "2023.03.15"]
[EventType "k.o."]
[EventCountry "USA"]
[SourceTitle "playchess.com"]
[Source "ChessBase"]
[SourceQuality "1"]
[TimeControl "1500+10"]

{[%evp 12,85,0,0,30,28,28,22,51,34,45,33,38,17,21,-8,15,12,78,77,105,95,91,51,175,187,162,180,167,105,120,108,283,159,154,150,148,-3,42,53,41,35,87,93,156,139,155,151,215,226,222,218,244,208,261,92,93,93,93,0,0,0,0,0,461,0,0,0,164,0,0,0,469,449,29988,29989]} 1. d4 {[%emt 0:00:03]} Nf6 {[%emt 0:00:07]} 2. c4 {[%emt 0:00:02]} e6 {[%emt 0:00:02]} 3. g3 {[%emt 0:00:03]} d5 {[%emt 0:00:04]} 4. Nf3 {[%emt 0:00:05]} Be7 {[%emt 0:00:01]} 5. Bg2 {[%emt 0:00:04]} O-O {[%emt 0:00:03]} 6. Nc3 {[%emt 0:00:03]} dxc4 {[%emt 0:00:23]} 7. Ne5 {[%emt 0:00:05]} c6 {[%emt 0:02:20] E06: Closed Catalan: Early deviations.} 8. Nxc4 {[%emt 0:02:18] [#]} b5 $146 {[%emt 0:02:05]} ({Predecessor:} 8... c5 9. dxc5 Qxd1+ 10. Nxd1 Na6 11. c6 bxc6 12. O-O Nd5 13. Ne5 Bb7 14. Ne3 Rfd8 {1-0 Gurevich,D (2370)-Perez Leiva,J (2384) Titled Tuesday intern op 26th Oct blitz 2021 (10)}) 9. Ne5 {[%emt 0:00:03]} Qb6 {[%emt 0:00:06] The position is equal.} 10. O-O {[%emt 0:01:32]} Rd8 {[%emt 0:00:05]} 11. Qc2 {[%emt 0:02:25]} Bb7 {[%emt 0:00:13]} 12. Rd1 {[%emt 0:04:05]} Na6 {[%emt 0:00:16]} 13. e3 {[%emt 0:01:17]} Rac8 {[%emt 0:00:10]} 14. Qe2 {[%emt 0:00:45]} Nb4 {[%emt 0:01:51]} (14... Nd7 $11) 15. Bd2 $16 {[%emt 0:02:29]} a6 {[%emt 0:01:05]} 16. a3 {[%emt 0:00:54] Dodges c5} Nbd5 {[%emt 0:00:47]} 17. Ne4 {[%emt 0:00:01]} a5 {[%emt 0:07:44]} (17... Nxe4 $1 $14 18. Bxe4 g6) 18. Ng5 $18 {[%emt 0:01:12]} Rf8 {[%emt 0:00:18]} 19. e4 {[%emt 0:00:23]} Nc7 {[%emt 0:01:48]} 20. Be3 {[%emt 0:00:20]} ({White should play} 20. Rac1 $1 $18) 20... c5 $16 {[%emt 0:00:48]} 21. Rac1 {[%emt 0:03:06][%cal Rd4c5]} Na6 {[%emt 0:00:28]} (21... c4 $16) 22. d5 {[%emt 0:01:49]} ({White must play} 22. Ngxf7 $1 $18 {Threatens to win with Ng5.} Rxf7 23. dxc5 Bxc5 24. Nxf7 Kxf7 25. e5) 22... exd5 {[%emt 0:01:08]} 23. exd5 {[%emt 0:00:01][%cal Od5d6] aiming for d6!} Bd6 {[%emt 0:01:16]} 24. Nd3 {[%emt 0:00:40] White is much more active. The black rooks are badly placed.} ({White should try} 24. Ng4 $1 $16 Ne8 25. f4) 24... h6 {[%emt 0:00:43]} (24... Bxd5 25. Nxh7 Kxh7 26. Bxd5 $14) 25. Ne4 {[%emt 0:00:30]} Nxe4 {[%emt 0:01:25]} 26. Bxe4 {[%emt 0:00:01] Qg4 is the strong threat.} Rfe8 {[%emt 0:00:05]} (26... Rce8 $14 27. Qg4 Bc8) 27. Qg4 $1 {[%emt 0:00:11]} Bf8 {[%emt 0:00:47] [#]} (27... h5 $142 28. Qf3 (28. Qxh5 $2 Rxe4 29. Nf4 Nc7 $19) (28. Qf5 g6 $11) 28... Qd8) 28. b4 $1 {[%emt 0:00:16][%mdl 512]} axb4 {[%emt 0:00:16]} 29. axb4 {[%emt 0:00:01]} h5 {[%emt 0:01:31]} (29... g6 $16 {might work better.} 30. bxc5 Nxc5) 30. Qf3 $1 $40 {[%emt 0:00:36][%mdl 128] White is out for blood.} (30. Qxh5 $2 Rxe4 31. bxc5 Nxc5 $19) (30. Qf5 g6 31. Qf3 f5 32. Bxf5 Qf6 $14) 30... g6 {[%emt 0:00:32]} 31. g4 {[%emt 0:01:08]} hxg4 {[%emt 0:00:58]} 32. Qxg4 {[%emt 0:00:01]} Rc7 {[%emt 0:00:40] [#]} 33. bxc5 $2 {[%emt 0:00:57]} (33. Qh4 $1 $18) 33... Nxc5 $16 {[%emt 0:00:11]} 34. Nxc5 {[%emt 0:00:39]} (34. Rxc5 {seems wilder.} Bxc5 35. Nxc5 Rxc5 36. Bd4) 34... Bxc5 {[%emt 0:00:12]} 35. Bxc5 {[%emt 0:00:02]} (35. Rxc5 $16 Rxc5 36. Bd4 {[%mdl 64] Skewer} (36. Bxg6 fxg6 37. Bxc5 Qxc5 $11)) 35... Rxc5 $11 {[%emt 0:00:03]} 36. Rxc5 {[%emt 0:00:13]} Qxc5 {[%emt 0:00:06]} 37. Bxg6 {[%emt 0:00:07]} Kf8 $2 {[%emt 0:00:28][%mdl 8192] [#]} (37... fxg6 $11 38. Qxg6+ Kf8 39. Qf5+ Kg8) 38. Bxf7 $2 {[%emt 0:00:08]} Kxf7 {[%emt 0:00:13]} 39. Qf5+ {[%emt 0:00:14]} Kg7 $2 {[%emt 0:00:11]} (39... Kg8 $11 40. Kh1 (40. Qg6+ Kf8 $11) 40... Re7 41. Rg1+ Rg7 42. Qe6+ Kh7 43. Rxg7+ {[%mdl 64] Remove Defender} Kxg7 44. Qd7+ Kf6 45. Qxb7 Ke5) 40. Qg5+ $2 {[%emt 0:00:05]} (40. Rd3 $18 {Qg5+ would kill now.} Re1+ 41. Kg2 Bxd5+ 42. Rxd5) 40... Kf7 {[%emt 0:00:03] ...Rg8 would be deadly.} 41. Qf5+ {[%emt 0:00:01]} Ke7 $2 {[%emt 0:00:17][%mdl 8192]} (41... Kg7 $11 {and Black has nothing to worry.}) 42. d6+ $18 {[%emt 0:00:13][%mdl 64] Discovered Attack} Kd8 {[%emt 0:00:05]} (42... Qxd6 $18 43. Qh7+ {[%mdl 64] Skewer} Kf8 44. Qh8+ (44. Rxd6 $2 Re1#) 44... Kf7 45. Qxe8+ (45. Rxd6 $2 Re1#) 45... Kxe8 46. Rxd6 Bc8) 43. Qxc5 {[%emt 0:00:04] A cool game by Paikidze.   Weighted Error Value: White=0.54/Black=0.79} 1-0

[Event "American Cup Women Elimination 2023"]
[Site "Saint Louis"]
[Date "2023.03.23"]
[Round "4.1"]
[White "Lee, Alice"]
[Black "Paikidze, Nazi"]
[Result "1-0"]
[ECO "A43"]
[WhiteElo "2362"]
[BlackElo "2314"]
[Annotator "TA"]
[PlyCount "45"]
[EventDate "2023.03.15"]
[EventType "k.o."]
[EventCountry "USA"]
[SourceTitle "playchess.com"]
[Source "ChessBase"]
[SourceQuality "1"]
[TimeControl "1500+10"]

{[%evp 9,45,31,50,43,50,57,78,80,96,93,105,44,113,84,108,0,0,0,0,0,142,134,161,133,147,153,936,954,936,926,927,934,1056,1053,1191,1185,1346,848]} 1. d4 {[%emt 0:00:01]} g6 {[%emt 0:00:02]} 2. c4 {[%emt 0:00:01]} Bg7 {[%emt 0:00:02]} 3. e4 {[%emt 0:00:05]} c5 {[%emt 0:00:09]} 4. d5 {[%emt 0:00:01]} d6 {[%emt 0:00:02]} 5. Be2 {[%emt 0:00:14]} e6 {[%emt 0:01:43]} 6. Nc3 {[%emt 0:00:46]} Bxc3+ {[%emt 0:02:11]} 7. bxc3 {[%emt 0:00:02]} e5 {[%emt 0:00:01]} 8. Bd3 {[%emt 0:01:13] White is better.} Nd7 {[%emt 0:01:25]} 9. Ne2 {[%emt 0:00:16]} Qe7 {[%emt 0:00:47]} 10. h3 {[%emt 0:01:44]} ({White should play} 10. O-O $16) 10... Kd8 {[%emt 0:01:43]} ({Black should try} 10... f5 $1 $14) 11. Be3 {[%emt 0:00:38]} Kc7 {[%emt 0:00:16][%cal Of7f5]} 12. Qd2 {[%emt 0:02:41] White is more active.} (12. Ng3 $16) 12... f5 $1 $11 {[%emt 0:02:53]} 13. exf5 {[%emt 0:01:58]} e4 {[%emt 0:00:04]} 14. Bg5 $36 {[%emt 0:00:09][%mdl 2048] White has some pressure.} Ndf6 {[%emt 0:02:52]} (14... Ngf6 $11 15. Bc2 Ne5) 15. Bc2 $16 {[%emt 0:01:12] Black must now prevent fxg6.} Bxf5 {[%emt 0:00:28]} 16. Qe3 {[%emt 0:00:51]} h6 {[%emt 0:00:41]} 17. Bf4 {[%emt 0:00:05][%cal Bg5f4,Bf4d6,Bd6e5][%mdl 32]} g5 $2 {[%emt 0:01:28] [#] This move loses the game for Black.} (17... b6 $16 18. O-O g5) 18. Qxc5+ $18 {[%emt 0:00:05] White is clearly winning.} Kd8 {[%emt 0:01:21]} 19. Bxd6 {[%emt 0:00:13] A strong pair of Bishops.} Qd7 {[%emt 0:00:11]} 20. Nd4 {[%emt 0:00:31]} Rc8 {[%emt 0:00:25]} 21. Qb4 {[%emt 0:00:18]} Ne8 {[%emt 0:02:02]} 22. Be5 {[%emt 0:00:20] [#] Threatens to win with Ne6+.} Rh7 {[%emt 0:00:15]} 23. g4 {[%emt 0:00:08] An entertaining game by Lee.   Weighted Error Value: White=0.18 (very precise) /Black=0.29 (precise)} 1-0

[Event "American Cup Women Elimination 2023"]
[Site "Saint Louis"]
[Date "2023.03.23"]
[Round "4.2"]
[White "Paikidze, Nazi"]
[Black "Lee, Alice"]
[Result "1-0"]
[ECO "D45"]
[WhiteElo "2314"]
[BlackElo "2362"]
[Annotator "TA"]
[PlyCount "67"]
[EventDate "2023.03.15"]
[EventType "k.o."]
[EventCountry "USA"]
[SourceTitle "playchess.com"]
[Source "ChessBase"]
[SourceQuality "1"]
[TimeControl "1500+10"]

{[%evp 13,67,-8,0,-19,0,0,0,-17,33,23,23,9,11,-8,51,-6,0,0,0,0,56,50,145,122,349,337,395,413,526,531,958,970,977,974,963,959,2041,1155,2037,1927,2127,2160,29987,29986,2983,1386,29989,1174,1104,1110,1519,1177,1499,1469,5826,5744]} 1. d4 {[%emt 0:00:03]} d5 {[%emt 0:00:01]} 2. c4 {[%emt 0:00:01]} c6 {[%emt 0:00:01]} 3. Nc3 {[%emt 0:00:02]} Nf6 {[%emt 0:00:02]} 4. e3 {[%emt 0:00:02]} e6 {[%emt 0:00:07]} 5. Nf3 {[%emt 0:00:04]} Nbd7 {[%emt 0:00:02]} 6. Qc2 {[%emt 0:00:03]} Bd6 {[%emt 0:00:01]} 7. g4 {[%emt 0:00:03]} h6 {[%emt 0:00:37]} 8. h3 {[%emt 0:00:02]} b6 {[%emt 0:00:27]} 9. cxd5 {[%emt 0:00:48]} exd5 {[%emt 0:00:57]} 10. Nh4 {[%emt 0:02:27] The position is equal.} Bb7 {[%emt 0:06:09]} (10... Bb4 $11) 11. Nf5 $14 {[%emt 0:00:34]} Bf8 {[%emt 0:00:02]} 12. Bg2 {[%emt 0:00:47]} g6 {[%emt 0:00:18] Wards off e4} 13. Ng3 {[%emt 0:00:09]} Bd6 {[%emt 0:00:12]} (13... Bg7 $11) 14. f4 {[%emt 0:01:11]} (14. O-O $14) 14... Qe7 {[%emt 0:01:59]} 15. O-O {[%emt 0:00:04]} O-O {[%emt 0:00:33]} 16. Bd2 {[%emt 0:01:11]} b5 {[%emt 0:00:34]} (16... c5 $11) 17. e4 {[%emt 0:02:46]} dxe4 {[%emt 0:01:33]} ({Black should try} 17... b4 $14 18. e5 bxc3 19. exd6 Qxd6 20. Qxc3 Ba6) 18. Rae1 {[%emt 0:01:06][%cal Rg3e4]} Bc7 $2 {[%emt 0:02:40] This costs Black the game.} (18... Qd8 $16) 19. Ncxe4 $18 {[%emt 0:01:07]} Nxe4 {[%emt 0:00:12]} 20. Nxe4 {[%emt 0:00:48]} ({Not} 20. Qxe4 Qd6 $14) 20... Qd8 {[%emt 0:01:28]} 21. f5 {[%emt 0:01:08] [#] Black must now prevent fxg6.} Nf6 {[%emt 0:00:55]} 22. fxg6 {[%emt 0:00:52]} fxg6 {[%emt 0:00:11]} 23. Nc5 {[%emt 0:04:04]} Qxd4+ {[%emt 0:00:21]} 24. Be3 {[%emt 0:00:02]} Qe5 {[%emt 0:00:43]} 25. Qxg6+ {[%emt 0:01:21]} (25. Nxb7 $2 Qh2+ 26. Kf2 Nxg4+ 27. Ke2 Qxg2+ 28. Kd3 Ne5+ 29. Kc3 b4+ 30. Kb3 Qd5+ 31. Kxb4 Ba5+ 32. Ka3 Rxf1 33. Rxf1 Nc4+ $19) 25... Kh8 {[%emt 0:00:02]} 26. Rf5 {[%emt 0:00:45]} (26. Nxb7 $2 {too greedy.} Qh2+ 27. Kf2 Nxg4+ 28. Ke2 Qxg2+ $19) 26... Qh2+ {[%emt 0:00:18]} 27. Kf1 {[%emt 0:00:01] [#] White wants to mate with Bd4.} Nxg4 {[%emt 0:04:03]} 28. hxg4 {[%emt 0:00:54]} Rxf5+ {[%emt 0:00:10]} 29. gxf5 {[%emt 0:01:05]} (29. Qxf5 $142 Qe5 30. Qf7) 29... Qh4 {[%emt 0:01:14]} 30. Qxh6+ {[%emt 0:01:09]} (30. Bxh6 $142 Qc4+ 31. Re2 Rg8 32. Qh5 (32. Nxb7 Rxg6 33. fxg6 Qd3 $11) 32... Qxe2+ 33. Qxe2 Rg3 34. f6 Bc8 35. Qh5) 30... Qxh6 {[%emt 0:00:02] White is clearly winning.} 31. Bxh6 {[%emt 0:00:02]} Bc8 {[%emt 0:00:05]} 32. Re8+ {[%emt 0:00:32]} Kh7 {[%emt 0:00:03]} 33. Be3 {[%emt 0:00:43]} b4 {[%emt 0:00:16]} 34. Re7+ {[%emt 0:00:10] Artfully played by Paikidze.   Weighted Error Value: White=0.13 (very precise) /Black=1.14} 1-0

[Event "American Cup Women Elimination 2023"]
[Site "Saint Louis"]
[Date "2023.03.23"]
[Round "4.3"]
[White "Paikidze, Nazi"]
[Black "Lee, Alice"]
[Result "0-1"]
[ECO "D45"]
[WhiteElo "2314"]
[BlackElo "2362"]
[Annotator "TA"]
[PlyCount "82"]
[EventDate "2023.03.15"]
[EventType "k.o."]
[EventCountry "USA"]
[SourceTitle "playchess.com"]
[Source "ChessBase"]
[SourceQuality "1"]
[TimeControl "600+5"]

{[%evp 22,82,0,0,0,0,25,26,62,0,299,264,346,127,299,95,92,58,104,97,118,114,110,110,120,90,138,118,134,121,139,95,76,23,25,16,32,38,112,52,85,88,86,0,0,0,0,0,50,-306,-285,-290,-252,-728,-718,-29983,-29984,-29984,-29985,-29987,-29988,-29994,-29989]} 1. d4 {[%emt 0:00:02]} d5 {[%emt 0:00:01]} 2. c4 {[%emt 0:00:02]} c6 {[%emt 0:00:01]} 3. Nc3 {[%emt 0:00:04]} Nf6 {[%emt 0:00:01]} 4. e3 {[%emt 0:00:01]} e6 {[%emt 0:00:02]} 5. Nf3 {[%emt 0:00:02]} Nbd7 {[%emt 0:00:01]} 6. Qc2 {[%emt 0:00:02]} b6 {[%emt 0:00:01]} 7. Be2 {[%emt 0:00:11]} Bb7 {[%emt 0:00:06]} 8. b3 {[%emt 0:00:26]} Bd6 {[%emt 0:00:28]} 9. Bb2 {[%emt 0:00:03]} Rc8 {[%emt 0:00:35]} 10. O-O {[%emt 0:00:05]} O-O {[%emt 0:00:02]} 11. e4 {[%emt 0:00:50]} dxe4 {[%emt 0:00:07]} 12. Nxe4 {[%emt 0:00:02]} Nxe4 {[%emt 0:00:08]} 13. Qxe4 {[%emt 0:00:02]} Qe7 {[%emt 0:00:24]} 14. Rfe1 {[%emt 0:00:40]} f5 {[%emt 0:00:20] White has an edge.} 15. Qc2 {[%emt 0:00:16]} ({Better is} 15. Qe3 $14) 15... Rfd8 $2 {[%emt 0:01:00][%mdl 8192]} (15... c5 $11) 16. Bd3 {[%emt 0:00:43]} Qf7 {[%emt 0:00:19]} 17. h3 $2 {[%emt 0:00:46]} (17. c5 $18 {is the precise move to win.}) 17... h6 $2 {[%emt 0:00:04] [#]} (17... Bf4 $16) 18. Rad1 $2 {[%emt 0:00:08]} (18. c5 $1 $18 {and the rest is easy.}) 18... Re8 {[%emt 0:00:54]} 19. a3 {[%emt 0:01:04][%cal Oc4c5]} Rcd8 {[%emt 0:00:47]} (19... c5 $14) 20. b4 {[%emt 0:00:12]} g6 {[%emt 0:00:45]} 21. Qc3 {[%emt 0:00:36][%cal Od4d5] And now d5! would win.} Kh7 {[%emt 0:00:10]} 22. c5 {[%emt 0:00:25]} Bb8 {[%emt 0:00:25]} 23. Ne5 {[%emt 0:00:53]} Bxe5 {[%emt 0:00:19]} (23... Nxe5 $142 24. dxe5 Rd5) 24. dxe5 $16 {[%emt 0:00:01]} bxc5 {[%emt 0:00:01]} 25. bxc5 {[%emt 0:00:08]} Qe7 {[%emt 0:00:03]} 26. Qb4 {[%emt 0:00:32]} Nxc5 {[%emt 0:00:20]} 27. Bc2 {[%emt 0:00:24]} ({White should play} 27. Bc4 $16) 27... Rd5 $11 {[%emt 0:00:17]} 28. Bd4 {[%emt 0:00:12][%mdl 1024] White has compensation.} a5 {[%emt 0:00:15]} 29. Qb6 {[%emt 0:00:28]} Na6 {[%emt 0:00:35]} (29... Ba8 $14) 30. Rb1 {[%emt 0:00:21]} (30. Bd3 $16) 30... Nb4 {[%emt 0:00:26]} 31. Ba4 {[%emt 0:00:23]} Ra8 {[%emt 0:00:19] [#] Hoping for ...Ra6. Black is weak on the dark squares} 32. axb4 {[%emt 0:00:09]} (32. Bc3 $16 c5 33. Rec1 (33. axb4 axb4 34. Bb3 Ra6 $11)) 32... Ra6 {[%emt 0:00:01]} 33. bxa5 {[%emt 0:01:12]} Rxb6 {[%emt 0:00:02]} 34. Bxb6 {[%emt 0:00:01]} c5 {[%emt 0:00:28]} ({Black should try} 34... Qa3 $1 $11 35. Bb3 Rb5 36. Bxe6 Rxb1 37. Rxb1 Qd3) 35. Red1 $2 {[%emt 0:00:03][%mdl 8192]} (35. Bb5 $14 {keeps the upper hand.}) 35... Qg5 $19 {[%emt 0:00:14] ( -> ...Rxd1+)} (35... Rxe5 $2 36. Bd8 Qg7 37. Rd7 $18) 36. g3 {[%emt 0:00:12][%cal Ob6d8] Bd8! would be deadly.} Qh5 $40 {[%emt 0:00:13][%mdl 128] Black is out for blood.} (36... Rxe5 $2 37. Bd8 Bd5 38. Bxg5 $18) 37. Rxd5 $2 {[%emt 0:00:24]} ({Don't play} 37. Bxc5 Ba8 38. Bb3 (38. Rxd5 $2 Bxd5 39. Kh2 Qe2 $19) 38... Rxd1+ 39. Rxd1 Bc6 $19) (37. a6 Bxa6 38. Bxc5 Rxd1+ 39. Bxd1 Qxh3 40. Bf3) 37... Bxd5 {[%emt 0:00:01]} 38. Kf1 {[%emt 0:00:05]} Qxh3+ {[%emt 0:00:08] Black mates.} 39. Ke2 {[%emt 0:00:02]} Qg4+ {[%emt 0:00:02]} 40. Kd2 {[%emt 0:00:06]} Qd4+ {[%emt 0:00:04]} 41. Ke2 {[%emt 0:00:05]} Qe4+ {[%emt 0:00:03] Weighted Error Value: White=0.85/Black=0.37} 0-1